Cogmind - Beta 16.1 @@@ ROGUE MODE // 2026.02.20 @ 20:44:37 Player: Skergy Result: Destroyed by EM-NOW(R) with Subdweller Beam Cannon Performance ------------- Evolutions (0) 0 Regions Visited (2) 400 Robots Destroyed (22) 110 Value Destroyed (435) 435 Prototype IDs (0) 0 Alien Tech Used (0) 0 Bonus (0) 0 TOTAL SCORE: 945 Bonus ------- None Cogmind --------- Core Integrity 0/250 Matter 251/300 Energy 263/265 System Corruption 0% Temperature Warning (333) Movement Rolling (130) Ox2 Location -10/Subcaves Parts ------- > --- POWER (1) -------- Improved Ion Engine > --- PROPULSION (2) --- Subdweller Monowheel > --- UTILITY (2) ------ High-capacity Storage Unit > --- WEAPON (2) ------- Beam Cannon Light Cannon > --- INVENTORY (20) --- Improved Ion Engine Improved Ion Engine Aluminum Leg Aluminum Leg Large Storage Unit Medium Matter Pod (100) Subdweller Optics Improved Terrain Scanner Terrain Scan Processor Seismic Detector Light Armor Plating Grenade Launcher Grenade Launcher Mining Laser Peak State ------------ > --- POWER ------------ Improved Ion Engine > --- PROPULSION ------- Light Treads Light Treads > --- UTILITY ---------- Small Storage Unit Seismic Detector > --- WEAPON ----------- Heavy EM Pulse Gun Heavy EM Pulse Gun > --- INVENTORY -------- Improved Ion Engine Improved Ion Engine Aluminum Leg Aluminum Leg Improved Terrain Scanner Assault Rifle Assault Rifle Mining Laser [Rating: 11] Favorites ----------- Power Light Ion Engine Engine Light Ion Engine Propulsion Light Treads Treads Light Treads Leg Aluminum Leg Wheel Subdweller Monowheel Utility Small Storage Unit Device Improved Terrain Scanner Storage Small Storage Unit Protection Light Armor Plating Weapon Assault Rifle Energy Gun Heavy EM Pulse Gun Energy Cannon Beam Cannon Ballistic Gun Assault Rifle Ballistic Cannon Light Cannon Special Weapon Mining Laser Build | -11 -10 -10 ------- Run | Yrd Mat Sub Slots Evolved . | . . . Power . | . . . Propulsion . | . . . Utility . | . . . Weapon . | . . . Parts Attached 21 | 9 9 3 Power 2 | 1 1 . Engine 2 | 1 1 . Core . | . . . Reactor . | . . . Propulsion 4 | 2 1 1 Treads 2 | 2 . . Leg 1 | . 1 . Wheel 1 | . . 1 Hover . | . . . Flight . | . . . Utility 6 | 3 2 1 Device 2 | 2 . . Storage 3 | 1 2 . Processor . | . . . Hackware . | . . . Protection 1 | . . 1 Artifact . | . . . Weapon 9 | 3 5 1 Energy Gun 4 | . 4 . Energy Cannon 1 | . 1 . Ballistic Gun 2 | 2 . . Ballistic Cannon 1 | . . 1 Launcher . | . . . Special Weapon 1 | 1 . . Impact Weapon . | . . . Slashing Weapon . | . . . Piercing Weapon . | . . . Special Melee Weapon . | . . . Unidentified Prototypes . | . . . Parts Lost 7 | . 4 3 Power . | . . . Propulsion 2 | . 1 1 Utility 1 | . . 1 Weapon 4 | . 3 1 Highest Loss Streak 2 | . 2 2 To Critical Strikes . | . . . Average Backups 8 | 5 12 13 Power 1 | . 1 2 Propulsion 1 | 1 1 1 Utility 2 | . 4 6 Weapon 2 | 1 4 3 Tool/Special . | . . . Unused Backups 11 | . 2 9 Power 3 | . 1 2 Propulsion 1 | . . 1 Utility 4 | . . 4 Weapon 3 | . 1 2 Tool/Special . | . . . Average Slot Usage (%) 94 | . 93 99 Engine 14 | . 14 14 Treads 21 | . 22 13 Leg 5 | . 5 7 Device 13 | . 14 5 Storage 14 | . 14 14 Energy Gun 16 | . 18 5 Energy Cannon 4 | . 3 14 Peak Build Rating 11 | 9 11 11 Average Rating 9 | 8 9 10 On Entrance 6 | . 9 10 Avg Prop Armor Cover (%) 9 | 20 7 8 Naked Turns . | . . . Heaviest Build 56 | 13 54 56 Greatest Support 40 | 40 40 20 Greatest Overweight (x) 4 | 4 2 2 Average Overweight (x) . | . 1 2 Largest Inventory Capacity 20 | 8 20 20 Average Capacity 11 | 7 18 20 Most Carried 14 | 6 14 14 Average Carried 8 | 5 12 13 Final Capacity 20 | 8 20 20 Final Carried 14 | 6 13 14 Class Distribution -------------------- 100% | Mutant Dominant Class ---------------- Mutant | -10/Materials Mutant | -10/Subcaves Resources | -11 -10 -10 ----------- Run | Yrd Mat Sub Matter Collected 614 | 376 185 53 Remotely . | . . . Salvage Created 719 | 162 521 36 Parts 48 | 12 34 2 Haulers Intercepted . | . . . Recyclers Shooed . | . . . Parts Field Recycled . | . . . Retrieved Matter . | . . . Parts Self-Destructed 7 | . . 7 Prevented . | . . . Parts Restored . | . . . Kills | -11 -10 -10 ------- Run | Yrd Mat Sub Combat Hostiles Destroyed 14 | . 13 1 Guns 11 | . 11 . Cannons 1 | . . 1 AOE 1 | . 1 . Classes Destroyed 7 | 2 4 1 Builder 1 | . 1 . Tunneler 4 | 4 . . Recycler 2 | 1 1 . Watcher 1 | . 1 . Swarmer 6 | . 6 . Grunt 7 | . 7 . Subdweller 1 | . . 1 Best Kill Streak 5 | 2 5 1 Combat Bots Only 4 | . 4 1 Max Kills in Single Turn 2 | 1 2 1 Gunslinging . | . . . Exploded 1 | . 1 . Melee . | . . . Uniques/NPCs Destroyed . | . . . Combat | -11 -10 -10 -------- Run | Yrd Mat Sub Hostile Shots Fired 98 | . 73 25 Missed 31 | . 24 7 Hits 67 | . 49 18 Projectile 67 | . 49 18 Critical Strikes 1 | . . 1 Damage Taken 1073 | . 573 500 Core 269 | . 108 161 Absorbed by Shields . | . . . Core Remaining (%) 100 | 100 . . Volleys Fired 79 | 24 43 12 Largest 2 | 2 2 2 Hottest 105 | 100 100 105 Shots Fired 125 | 40 61 24 Gun 94 | 32 60 2 Cannon 22 | . . 22 Launcher . | . . . Special 9 | 8 1 . Kinetic 42 | 32 . 10 Thermal 21 | 8 1 12 Explosive . | . . . Electromagnetic 62 | . 60 2 Robot Hit Streak 8 | 8 8 7 Robot Miss Streak 4 | 3 4 3 Penetration Max . | . . . Secondary Targets . | . . . Shots Hit Robots 76 | 19 40 17 Core Hits 25 | 5 17 3 Critical Kills . | . . . Critical Parts Destroyed . | . . . Critical Strikes 1 | . 1 . Corrupt 1 | . 1 . Melee Attacks . | . . . Impact . | . . . Slashing . | . . . Piercing . | . . . Sneak Attacks . | . . . Combat Hostiles . | . . . Follow-up Attacks . | . . . Damage Inflicted 1223 | 248 758 217 Guns 887 | 248 639 . Cannons 217 | . . 217 Explosions 119 | . 119 . Melee . | . . . Ramming . | . . . Kinetic 378 | 248 . 130 Thermal 206 | . 119 87 Explosive . | . . . Electromagnetic 639 | . 639 . Impact . | . . . Slashing . | . . . Piercing . | . . . Highest Corruption . | . . . Average Corruption . | . . . Corruption Purged . | . . . Corruption Blocked . | . . . Overload Shots . | . . . Overflow Damage 3 | . 3 . Projectiles . | . . . Explosions 3 | . 3 . Melee . | . . . Knockbacks 1 | . . 1 Impact . | . . . Kinetic 1 | . . 1 Secondary . | . . . Self-Inflicted Damage 56 | . 56 . Shots 2 | . 2 . Rammed . | . . . Targets Rammed . | . . . Kicked . | . . . Crushed . | . . . Highest Temperature 357 | 40 357 324 Average Temperature 91 | 13 95 232 Received Heat Transfer 582 | . 120 462 Effects 2 | . 1 1 Interference 1 | . 1 . Matter Decay 1 | . . 1 Siege Activations . | . . . Martial Activations . | . . . Shielding Activations . | . . . Robots Disrupted . | . . . Combat Hostiles . | . . . Robots Corrupted 1 | . 1 . Combat Hostiles 1 | . 1 . Parts Fried 3 | . 3 . Impact Corruptions . | . . . Robots Melted . | . . . Combat Hostiles . | . . . Parts Melted . | . . . Heat Transferred 335 | . 150 185 Parts Sabotaged . | . . . Parts Stolen . | . . . Parts Stripped . | . . . Power Chain Reactions 3 | . 3 . Alert | -11 -10 -10 ------- Run | Yrd Mat Sub Maximum Alert Level . | . . . Low Security (%) 100 | 100 100 . Level 1 . | . . . Level 2 . | . . . Level 3 . | . . . Level 4 . | . . . Level 5 . | . . . High Security . | . . . Max Security . | . . . Peak Influence 174 | 5 174 . Initial . | . . . Average 23 | . 76 . Influence Increases 456 | 25 431 . Destroy 0b10 Robot/C 260 | . 260 . Destroy 0b10 Robot/NC 40 | 25 15 . Destroy Leader 52 | . 52 . Successful Hack 16 | . 16 . Disable Machine 15 | . 15 . Destroy Structure 13 | . 13 . Lose Combat Pursuer 60 | . 60 . Influence Decreases 456 | 25 400 31 Entered New Map 15 | . . 15 Time Decay 411 | 25 370 16 Lost Part 30 | . 30 . Squads Dispatched 2 | . 2 . Investigation . | . . . Extermination . | . . . Reinforcement 2 | . 2 . Assault . | . . . Garrison . | . . . Intercept . | . . . Searches Triggered . | . . . Construction Impeded . | . . . Haulers Reinforced . | . . . Active Scanning Responses . | . . . Cargo Convoy Interrupts . | . . . Stealth | -11 -10 -10 --------- Run | Yrd Mat Sub Distress Signals 2 | . 2 . Communications Jammed . | . . . Distress Signals . | . . . Times Spotted 27 | . 24 3 Peak Tracking Total 4 | . 4 2 Tactical Retreats 3 | . 3 . Traps | -11 -10 -10 ------- Run | Yrd Mat Sub Traps Triggered 1 | . 1 . Indirectly . | . . . Trap Hack Attempts . | . . . Triggered . | . . . Disarmed . | . . . Reprogrammed . | . . . Reused . | . . . Traps Extracted . | . . . Installed . | . . . Triggered . | . . . Machines | -11 -10 -10 ---------- Run | Yrd Mat Sub Machines Disabled 1 | . 1 . Max in Single Turn 1 | . 1 . Machines Repaired . | . . . Machines Dismantled . | . . . Machines Sabotaged . | . . . Overloaded Fab Kills . | . . . Hacking | -11 -10 -10 --------- Run | Yrd Mat Sub Machines Accessed 6 | . 6 . Terminals 5 | . 5 . Fabricators . | . . . Repair Stations . | . . . Recycling Units 1 | . 1 . Scanalyzers . | . . . Garrison Access . | . . . Total Hacks 25 | . 25 . Successful 11 | . 11 . Failed 14 | . 14 . Catastrophic 3 | . 3 . Database Lockouts . | . . . Manual 17 | . 17 . Terminals 23 | . 23 . Fabricators . | . . . Repair Stations . | . . . Recycling Units 2 | . 2 . Scanalyzers . | . . . Garrison Access . | . . . Terminal Hacks 2 | . 2 . Registered Components 1 | . 1 . Zone Layout 1 | . 1 . Fabricator Hacks . | . . . Repair Station Hacks . | . . . Recycling Unit Hacks . | . . . Scanalyzer . | . . . Garrison Access Hacks . | . . . Unauthorized Hacks 9 | . 9 . Terminals 8 | . 8 . Track 2 | . 2 . Assimilate 1 | . 1 . Botnet 3 | . 3 . Disrupt 1 | . 1 . Operators 1 | . 1 . Fabricators . | . . . Repair Stations . | . . . Recycling Units 1 | . 1 . Reject 1 | . 1 . Scanalyzers . | . . . Garrison Access . | . . . Data Cores Recovered . | . . . Used . | . . . Hacking Detections 6 | . 6 . Full Trace Events . | . . . Feedback Events . | . . . Feedback Blocked . | . . . Robot Schematics Acquired . | . . . Robots Built . | . . . Authchips . | . . . Time . | . . . Total Robot Build Rating . | . . . Part Schematics Acquired . | . . . Parts Built . | . . . Authchips . | . . . Time . | . . . Total Part Build Rating . | . . . Part Studies Acquired . | . . . Parts Repaired . | . . . Time . | . . . Parts Recycled . | . . . Recycled Matter . | . . . Retrieved Matter . | . . . Retrieved Components . | . . . Parts Scanalyzed . | . . . Part Schematics Acquired . | . . . Parts Damaged . | . . . Bothacking | -11 -10 -10 ------------ Run | Yrd Mat Sub Used RIF Installer . | . . . Robots Hacked . | . . . Non-combat . | . . . Combat . | . . . Robot Hacks Applied . | . . . Relay Couplers Released . | . . . Fabnet Peak Effective % . | . . . Robots Rewired . | . . . Allies Hacked . | . . . Hacks Repelled . | . . . Allies | -11 -10 -10 -------- Run | Yrd Mat Sub Total Allies . | . . . Largest Group . | . . . Highest-Rated Group . | . . . Highest-Rated Ally . | . . . Total Orders . | . . . Ally Attacks . | . . . Total Damage . | . . . Kills . | . . . Allies Corrupted . | . . . Allies Melted . | . . . Intel | -11 -10 -10 ------- Run | Yrd Mat Sub Active Infowar (turns) 4809 | 3490 1248 71 Terrain 3476 | 3470 6 . Seismic 1333 | 20 1242 71 Robot Analysis Total . | . . . Derelict Logs Recovered 1 | . . 1 Drone Launches . | . . . Drone Recoveries . | . . . Exploration | -11 -10 -10 ------------- Run | Yrd Mat Sub Turns Passed 5542 | 3686 1672 184 Spaces Moved 1203 | 619 510 74 Core 37 | 37 . . Treads 1117 | 582 510 25 Legs . | . . . Wheels 49 | . . 49 Hover . | . . . Flight . | . . . Fastest Speed 50 | 50 160 130 Average Speed 198 | 163 241 194 Slowest Speed 320 | 250 320 320 Overloaded Moves . | . . . Propulsion Burnouts . | . . . Robots Hopped . | . . . Potential Cave-ins 10 | 10 . . Cave-ins Triggered . | . . . Exploration Rate (%) 40 | 44 72 5 Regions Visited 2 Branch Regions 1 Pre-discovered Areas . | . . . Known Exits Taken . | . . . Unknown Exits Taken 2 | 1 1 . Scrap Searched 2 | . . 2 Spaces Dug 9 | 8 1 . Terrain Destroyed 19 | 8 11 . Melee . | . . . Projectile 9 | 8 1 . AOE 10 | . 10 . Terrain Rammed . | . . . Walls Destroyed . | . . . Machines Disabled . | . . . Actions | -11 -10 -10 --------- Run | Yrd Mat Sub Total 4215 | 3232 892 91 Wait 2884 | 2574 310 . Move 1201 | 618 509 74 Hop . | . . . Pick Up 21 | 7 12 2 Fast Attach 8 | 6 2 . Attach 6 | 1 4 1 Detach 1 | . 1 . Swap 9 | 2 5 2 Drop 6 | . 6 . Fire 79 | 24 43 12 Melee . | . . . Ram . | . . . Kick . | . . . Crush . | . . . Escape Stasis . | . . . Rewire . | . . . Trap . | . . . Miscellaneous . | . . . Route ------- -11/Scrapyard -10/Materials (discovered 5 exits: [*Mat x3] / [*Min] / [*Sub]) -10/Subcaves History --------- Turn | Location | Event 16 | -11/Scrapyard | Discovered new exit (range 16) 3687 | -11/Scrapyard | Entered Materials 3688 | -10/Materials | Build established: Mutant 4188 | -10/Materials | Discovered new exit (range 8) 4417 | -10/Materials | Discovered new exit (range 13) 4721 | -10/Materials | Discovered new exit (range 16) 5078 | -10/Materials | Discovered new exit (range 13) 5326 | -10/Materials | Discovered new exit (range 10) 5359 | -10/Materials | Entered Subcaves 5360 | -10/Subcaves | Approached by a straggling Scientist 5428 | -10/Subcaves | Core integrity fell below 50% 5534 | -10/Subcaves | Core integrity fell below 20% 5543 | -10/Subcaves | Destroyed by EM-NOW(R) with Subdweller Beam Cannon Last Messages --------------- 05444_ Acquired Sub. Optics. 05445_ Acquired 36 matter. 05452_ Acquired Sub. Monowheel. LE-IPS(c): "I think it's somewhere east of here" 05467_ Searching scrap... 05467_ Found Mak. Flight Unit. 05467_ Found 47 Matter. 05468_ Acquired 17 matter. 05468_ Searching scrap... 05468_ Found Flamer. 05468_ Found 57 Matter. 05472_ Subatomizers dissect the Mak. Flight Unit. LE-IPS(c): "I think it's somewhere east of here" 05519_ LE-IPS(c) destroyed. 05524_ KE-RNG(R) knocked back. 05529_ Critical hit (Meltdown: +300). 05538_ Overheating: Matter decay (-27). 05538_ Lgt. Treads destroyed. 05542_ Lgt. Armor Plating destroyed. Map ----- +----------------------------------------------------+ | ?????????????????????????????????????????????????? | | ?????????????????????????????????????????????????? | | ?????????????????????????????????????????????????? | | ?????????????????????????????????????????????????? | | ?????????????????????????????????????????????????? | | ?????????????????????????????????????????????????? | | ?????????????????????????????????????????????????? | | ?????????????????????????????????????????????????? | | ?????????????????????????????????????????????????? | | ?????????????????????????????????????????????????? | | ?????????????????????????????????????????????????? | | ?????????????????????????????????????????????????? | | ?????? ??????????????????????????????????????????? | | ???? ??????????????????????????????????????????? | | ????? ??????????????????????"?????????????????? | | ????? ?????????? ##"#??????""?????????????????? | | ?????? ??????????? ""?????#"" ????????????????? | | ?????? ???????????? ""##### " ?????????????????? | | ??????# ?????????????#""""""""??????????????????? | | ??????# ??????????????# ""???????????????????? | | ??????# ???????????????# #????????????????????? | | ??????# ##????????#;##?# #????????????????????? | | ??????# #???????## ###" #????????????????????? | | ??????# ???????# ##" ##????????????????????? | | ???????# ###?????# ;"R ##????????????????????? | | ????????# ###????# # @ "#????????????????????? | | ????????# ##??## # "#????????????????????? | | ????????# #?## R## #?????????????????? | | ????????# #### % % #?????????????????? | | ???????## ##### ! %% #?????????????? | | ???????# ###?## ## #?????????????? | | ???????## ##### ## #????????????? | | ????????# ## ### #???????????? | | ???????## #?## ## ??????????? | | ???????# #??# ##?## ??????????? | | ######## ## ## #??# ##????#### ??????????? | | #"%## ####### #?## #?????????????????????? | | #|%### ###???# #??## #?????????????????????? | | #=##"#"! ###?? #???####?????????????????????? | | #&# % #????????????????????????????? | | #"& ##" #????????????????????????????? | | ######## ### # #???????????????????????????? | | ???????#####??##? ##???????????????????????????? | | ??????????????????###????????????????????????????? | | ?????????????????????????????????????????????????? | | ?????????????????????????????????????????????????? | | ?????????????????????????????????????????????????? | | ?????????????????????????????????????????????????? | | ?????????????????????????????????????????????????? | | ?????????????????????????????????????????????????? | +----------------------------------------------------+ Best States ------------- Heat Dissipation 25 Energy Generation 12 Energy Capacity 265 Matter Stores 300 Matter Capacity 300 Sight Range 16 Terrain Scan Range 16 Terrain Scan Density 10 Armor Coverage 150 Evasion (%) 40 Recoil Reduction 2 Item Schematics ----------------- None Robot Schematics ------------------ None Fabricated ------------ Nothing Repaired ---------- Nothing Studied --------- None Alien Tech Used ----------------- None Achievements -------------- None Challenges ------------ None Game ------ Seed LightningBiocellBlasthammer Manual? 0 Play Time 00:18:16 Cumulative 135.4 hours Start 2026.02.20 @ 17:24:47 End 2026.02.20 @ 20:44:37 Sessions 3 Manual Loads 0 Difficulty Rogue Special Mode None Game No. 150 Rogue 150 Adventurer 0 Explorer 0 Win Type - Total 4 Types 4/0/0/0/0/0/0/0/0/0 Lore% 69 Gallery% 53 Achievement% 42 Wizard Run 0 Options --------- Layout 1 ASCII 0 Keyboard 1 Movement Vi Keybinds 0 Fullscreen 2 Font 24/Terminus Map View 50x35 Zoom Use 0% Tactical HUD 1 Map Filters NONE Filters NONE Steam 1 RUN: 942caa29-5957-4755-9682-903a9818b1b7